bitfinex-derivatives/quotes_SOLF0:USTF0_20251209
["timestamp","ask_amount","ask_price","bid_price","bid_amount"]
[1765261120168,0.05406263,132.45,132.44,3.31]
[1765261132679,9.98913683,132.5,132.45,3.39]
[1765261132680,6.7935,132.5,132.45,3.39]
[1765261133583,6.7935,132.5,132.46,0.05026568]
[1765261133780,6.7935,132.5,132.47,3.39]
[1765261137693,5.59863101,132.49,132.47,3.39]
[1765261137991,6.7935,132.5,132.47,3.39]
[1765261138189,5.59950734,132.49,132.47,3.39]
[1765261138380,6.7935,132.5,132.47,3.39]
[1765261138581,5.59950734,132.49,132.47,3.39]
[1765261138877,6.7935,132.5,132.47,3.39]
[1765261139081,5.59950734,132.49,132.47,3.39]
[1765261139283,6.7935,132.5,132.47,3.39]
[1765261139480,5.60057556,132.49,132.47,3.39]
[1765261139692,6.7935,132.5,132.47,3.39]
[1765261139988,5.60057556,132.49,132.47,3.39]
[1765261140192,6.7935,132.5,132.47,3.39]
[1765261140393,5.60179051,132.49,132.47,3.39]
[1765261140696,6.7938,132.49,132.47,3.39]
[1765261142199,5.60465133,132.48,132.47,3.39]
[1765261149201,5.60465133,132.48,132.46,3.24026568]
[1765261149387,5.60465133,132.47,132.46,0.05026568]
[1765261149592,10.83526725,132.47,132.46,0.05026568]
[1765261150094,17.84337867,132.47,132.46,0.05026568]
[1765261161902,17.84337867,132.47,132.46,3.36026568]
[1765261162104,5.60465133,132.47,132.46,3.36026568]
[1765261164002,64.2,132.48,132.46,3.36026568]
[1765261164308,5.60104991,132.47,132.46,3.36026568]
[1765261171711,7.64340409,132.47,132.46,0.05026568]
[1765261171916,19.88534494,132.47,132.46,0.05026568]
[1765261182019,19.88534494,132.47,132.42,3.31]
[1765261182218,2.04235418,132.45,132.42,3.31]
[1765261182422,5.60104991,132.44,132.42,3.31]
[1765261182617,5.60104991,132.43,132.42,3.31]
[1765261189329,5.60104991,132.43,132.41,3.13001977]
[1765261189530,0.05016868,132.44,132.41,3.13001977]
[1765261189736,5.57946374,132.43,132.41,0.05001977]
[1765261189935,2.04235418,132.43,132.41,0.05001977]
[1765261190323,2.04235418,132.43,132.39,3.08]
[1765261190324,5.57628231,132.42,132.39,3.08]
[1765261190619,5.57628231,132.41,132.39,3.08]
[1765261190924,5.57628231,132.4,132.39,3.08]
[1765261193135,5.57628231,132.4,132.38,0.04795111]
[1765261193340,5.57628231,132.39,132.38,0.04795111]
[1765261202241,8.89510739,132.41,132.38,0.04795111]
[1765261202433,5.7136322,132.4,132.38,0.04795111]
[1765261202635,8.89510739,132.41,132.38,0.04795111]
[1765261202839,5.7136322,132.4,132.38,0.04795111]
[1765261203042,8.89510739,132.41,132.38,0.04795111]
[1765261203238,5.71215936,132.4,132.38,0.04795111]
[1765261203443,8.89510739,132.41,132.38,0.04795111]
[1765261203643,5.7100003,132.4,132.38,0.04795111]
[1765261203942,8.89510739,132.41,132.38,0.04795111]
[1765261204146,5.70940618,132.4,132.38,0.04795111]
[1765261204445,8.89510739,132.41,132.38,0.04795111]
[1765261204641,5.70799192,132.4,132.38,0.04795111]
[1765261204844,8.89510739,132.41,132.38,0.04795111]
[1765261205041,5.70798993,132.4,132.38,0.04795111]
[1765261205233,8.89510739,132.41,132.38,0.04795111]
[1765261205439,5.70708089,132.4,132.38,0.04795111]
[1765261205746,8.89510739,132.41,132.38,0.04795111]
[1765261205938,5.70672839,132.4,132.38,0.04795111]
[1765261206136,8.89510739,132.41,132.38,0.04795111]
[1765261206340,5.70641128,132.4,132.38,0.04795111]
[1765261206542,8.89510739,132.41,132.38,0.04795111]
[1765261206745,5.70592805,132.4,132.38,0.04795111]
[1765261206951,8.89510739,132.41,132.38,0.04795111]
[1765261207249,5.70592805,132.4,132.38,0.04795111]
[1765261207451,8.89510739,132.41,132.38,0.04795111]
[1765261207653,5.7057097,132.4,132.38,0.04795111]
[1765261207949,8.89510739,132.41,132.38,0.04795111]
[1765261208149,5.70756673,132.4,132.38,0.04795111]
[1765261208348,8.89510739,132.41,132.38,0.04795111]
[1765261208550,5.70921819,132.4,132.38,0.04795111]
[1765261208751,8.89510739,132.41,132.38,0.04795111]
[1765261208947,5.70887812,132.4,132.38,0.04795111]
[1765261209147,8.89510739,132.41,132.38,0.04795111]
[1765261209348,5.70919224,132.4,132.38,0.04795111]
[1765261209544,8.89510739,132.41,132.38,0.04795111]
[1765261209744,5.70930401,132.4,132.38,0.04795111]
[1765261209948,8.89510739,132.41,132.38,0.04795111]
[1765261210148,5.70930025,132.4,132.38,0.04795111]
[1765261210348,8.89510739,132.41,132.38,0.04795111]
[1765261210548,5.70968028,132.4,132.38,0.04795111]
[1765261210748,8.89510739,132.41,132.38,0.04795111]
[1765261211048,5.70986105,132.4,132.38,0.04795111]
[1765261211249,8.89510739,132.41,132.38,0.04795111]
[1765261211452,5.71019708,132.4,132.38,0.04795111]
[1765261211751,8.89510739,132.41,132.38,0.04795111]
[1765261211952,5.70983215,132.4,132.38,0.04795111]
[1765261212150,8.89510739,132.41,132.38,0.04795111]
[1765261212349,5.71002713,132.4,132.38,0.04795111]
[1765261212552,8.89510739,132.41,132.38,0.04795111]
[1765261212750,5.70993965,132.4,132.38,0.04795111]
[1765261212951,8.89510739,132.41,132.38,0.04795111]
[1765261213253,5.70993766,132.4,132.38,0.04795111]
[1765261213451,8.89510739,132.41,132.38,0.04795111]
[1765261213748,2.04235418,132.39,132.38,0.04795111]
[1765261213950,7.75178366,132.39,132.38,0.04795111]
[1765261218151,5.70942948,132.39,132.38,0.04795111]
[1765261218342,0.05475321,132.41,132.38,3.26795111]
[1765261219241,0.05475321,132.41,132.38,0.04795111]
[1765261219242,5.71639886,132.4,132.38,0.04795111]
[1765261219552,5.71620677,132.39,132.38,0.04795111]
[1765261220350,7.75856095,132.39,132.38,0.04795111]
[1765261222656,5.71620677,132.39,132.38,0.04795111]
[1765261223658,0.05475321,132.41,132.38,0.04795111]
[1765261223957,5.7196245,132.4,132.38,0.04795111]
[1765261224157,0.05475321,132.41,132.38,0.04795111]
[1765261224359,5.72070016,132.4,132.38,3.43795111]
[1765261224664,0.05475321,132.41,132.38,3.43795111]
[1765261225361,5.72274464,132.4,132.38,3.43795111]
[1765261225660,0.05475321,132.41,132.38,3.43795111]
[1765261225862,5.72309347,132.4,132.38,3.43795111]
[1765261226156,0.05475321,132.41,132.38,3.43795111]
[1765261226346,5.72613754,132.4,132.38,3.43795111]
[1765261226546,0.05475321,132.41,132.38,3.43795111]
[1765261226756,5.72619458,132.4,132.38,3.43795111]
[1765261227052,0.05475321,132.41,132.38,3.43795111]
[1765261227255,5.72749898,132.4,132.38,3.43795111]
[1765261227560,0.05475321,132.41,132.38,3.43795111]
[1765261228160,5.73067149,132.4,132.38,3.43795111]
[1765261228457,0.05475321,132.41,132.38,3.43795111]
[1765261228662,5.73086685,132.4,132.38,3.43795111]
[1765261228855,0.05475321,132.41,132.38,3.43795111]
[1765261229060,5.73122983,132.4,132.38,3.43795111]
[1765261229260,0.05475321,132.41,132.38,3.43795111]
[1765261229464,5.73242797,132.4,132.38,3.43795111]
[1765261229667,0.05475321,132.41,132.38,3.43795111]
[1765261229965,5.73206492,132.4,132.38,3.43795111]
[1765261230264,0.05475321,132.41,132.38,3.43795111]
[1765261230458,5.73219691,132.4,132.38,3.43795111]
[1765261230658,0.05475321,132.41,132.38,3.43795111]
[1765261230859,5.73257356,132.4,132.38,3.43795111]
[1765261231059,0.05475321,132.41,132.38,3.43795111]
[1765261231262,5.73256978,132.4,132.38,3.43795111]
[1765261231461,0.05475321,132.41,132.38,3.43795111]
[1765261231768,5.73452806,132.4,132.38,3.43795111]
[1765261231960,0.05475321,132.41,132.38,3.43795111]
[1765261232157,5.73452984,132.4,132.38,3.43795111]
[1765261232358,0.05475321,132.41,132.38,3.43795111]
[1765261232556,5.73609041,132.4,132.38,3.43795111]
[1765261232758,0.05475321,132.41,132.38,3.43795111]
[1765261232958,5.73608618,132.4,132.38,3.43795111]
[1765261233161,0.05475321,132.41,132.38,3.43795111]
[1765261233465,5.73779337,132.4,132.38,3.43795111]
[1765261233655,0.05475321,132.41,132.38,3.43795111]
[1765261233861,5.73779409,132.4,132.38,3.43795111]
[1765261234066,0.05475321,132.41,132.38,3.43795111]
[1765261234267,5.73788246,132.4,132.38,3.43795111]
[1765261234470,0.05475321,132.41,132.38,3.43795111]
[1765261234768,5.71579991,132.4,132.38,3.43795111]
[1765261234957,0.05475321,132.41,132.38,3.43795111]
[1765261235159,5.71793018,132.4,132.38,3.43795111]
[1765261235367,0.05475321,132.41,132.38,3.43795111]
[1765261235567,5.7194786,132.4,132.38,3.43795111]
[1765261235762,0.05475321,132.41,132.38,3.43795111]
[1765261235961,5.71948737,132.4,132.38,3.43795111]
[1765261236163,0.05475321,132.41,132.38,3.43795111]
[1765261236364,5.71976542,132.4,132.38,3.43795111]
[1765261236566,0.05475321,132.41,132.38,3.43795111]
[1765261236765,5.71942425,132.4,132.38,3.43795111]
[1765261236969,0.05475321,132.41,132.38,3.43795111]
[1765261237164,5.71942425,132.4,132.38,3.43795111]
[1765261237367,0.05475321,132.41,132.38,3.43795111]
[1765261237666,5.71936488,132.4,132.38,3.43795111]
[1765261237868,0.05475321,132.41,132.38,3.43795111]
[1765261238068,5.71936362,132.4,132.38,3.43795111]
[1765261238266,0.05475321,132.41,132.38,3.43795111]
[1765261238467,5.71898942,132.4,132.38,3.43795111]
[1765261238659,0.05475321,132.41,132.38,3.43795111]
[1765261238863,5.71898942,132.4,132.38,3.43795111]
[1765261239066,0.05475321,132.41,132.38,3.43795111]
[1765261239266,5.7188242,132.4,132.38,3.43795111]
[1765261239468,0.05475321,132.41,132.38,3.43795111]
[1765261239669,5.71859166,132.4,132.38,3.43795111]
[1765261239873,0.05475321,132.41,132.38,3.43795111]
[1765261240077,5.71820598,132.4,132.38,3.43795111]
[1765261240276,0.05475321,132.41,132.38,3.43795111]
[1765261240463,5.71676187,132.4,132.38,3.43795111]
[1765261240663,0.05475321,132.41,132.38,3.43795111]
[1765261240869,5.7163782,132.4,132.38,3.43795111]
[1765261241070,0.05475321,132.41,132.38,3.43795111]
[1765261241270,5.7163782,132.4,132.38,3.43795111]
[1765261241471,0.05475321,132.41,132.38,3.43795111]
[1765261241770,5.71605364,132.4,132.38,3.43795111]
[1765261241975,0.05475321,132.41,132.38,3.43795111]
[1765261242175,5.71605364,132.4,132.38,3.43795111]
[1765261242472,0.05475321,132.41,132.38,3.43795111]
[1765261242671,5.71576452,132.4,132.38,3.43795111]
[1765261242862,0.05475321,132.41,132.38,3.43795111]
[1765261243066,5.71576254,132.4,132.38,3.43795111]
[1765261243267,0.05475321,132.41,132.38,3.43795111]
[1765261243469,5.71550362,132.4,132.38,3.43795111]
[1765261243669,0.05475321,132.41,132.38,3.43795111]
[1765261243865,5.71089253,132.4,132.38,3.43795111]
[1765261244078,0.05475321,132.41,132.38,3.43795111]
[1765261244267,5.71089055,132.4,132.38,3.43795111]
[1765261244472,0.05475321,132.41,132.38,3.43795111]
[1765261244674,5.71061841,132.4,132.38,3.43795111]
[1765261244980,5.71061841,132.39,132.38,3.43795111]
[1765261246678,5.71061841,132.39,132.38,0.04795111]
[1765261262300,5.71715844,132.39,132.38,0.04795111]
[1765261262798,5.71715844,132.39,132.38,3.13795111]
[1765261273810,5.71715844,132.39,132.38,0.04795111]
[1765261277110,17.64606592,132.39,132.34,3.09]
[1765261277314,5.71715844,132.38,132.34,3.09]
[1765261277509,5.71715844,132.37,132.34,3.09]
[1765261277816,6.7992,132.39,132.34,3.09]
[1765261278013,5.70375272,132.38,132.35,0.0552446]
[1765261278217,5.65092243,132.37,132.35,0.0552446]
[1765261278419,5.65092243,132.36,132.35,0.0552446]
[1765261278919,5.65092243,132.36,132.35,3.2252446]
[1765261279420,5.65092243,132.36,132.35,0.0552446]
[1765261282518,5.65092243,132.36,132.35,3.2252446]
[1765261282710,0.05283029,132.38,132.35,3.2252446]
[1765261282906,5.64415615,132.37,132.35,3.2252446]
[1765261283112,0.05283029,132.38,132.35,3.2252446]
[1765261283412,5.64418494,132.37,132.35,3.2252446]
[1765261283618,0.05283029,132.38,132.35,3.2252446]
[1765261283819,5.64448464,132.37,132.35,3.2252446]
[1765261284011,0.05283029,132.38,132.35,3.2252446]
[1765261284318,5.64444601,132.37,132.35,3.2252446]
[1765261284618,0.05283029,132.38,132.35,3.2252446]
[1765261284919,5.64468459,132.37,132.35,3.2252446]
[1765261285216,2.09842585,132.38,132.35,3.2252446]
[1765261285420,5.6448926,132.37,132.35,3.2252446]
[1765261285718,5.6448926,132.36,132.35,3.2252446]
[1765261286017,2.09842585,132.38,132.35,3.2252446]
[1765261286223,5.64487202,132.37,132.35,3.2252446]
[1765261286519,2.09842585,132.38,132.35,3.2252446]
[1765261286814,5.64526222,132.37,132.35,3.2252446]
[1765261287122,2.09842585,132.38,132.35,3.2252446]
[1765261287319,5.64536542,132.37,132.35,3.2252446]
[1765261287619,2.09842585,132.38,132.35,3.2252446]
[1765261287821,5.64548515,132.37,132.35,3.2252446]
[1765261288015,2.09842585,132.38,132.35,3.2252446]
[1765261288215,5.64551192,132.37,132.35,3.2252446]
[1765261288423,2.09842585,132.38,132.35,3.2252446]
[1765261288722,5.64609321,132.37,132.35,3.2252446]
[1765261288923,2.09842585,132.38,132.35,3.2252446]
[1765261289119,5.64742771,132.37,132.35,3.2252446]
[1765261289422,2.09842585,132.38,132.35,3.2252446]
[1765261289725,5.64796405,132.37,132.35,3.2252446]
[1765261290022,2.09842585,132.38,132.35,3.2252446]
[1765261290223,5.64707414,132.37,132.35,3.2252446]
[1765261290424,0.05283029,132.38,132.35,3.2252446]
[1765261293526,5.64049303,132.37,132.35,3.2252446]
[1765261293727,2.09842585,132.38,132.35,3.2252446]
[1765261294018,5.6401319,132.37,132.35,3.2252446]
[1765261294223,0.05283029,132.38,132.35,3.2252446]
[1765261294427,5.64012914,132.37,132.35,3.2252446]
[1765261294727,0.05283029,132.38,132.35,3.2252446]
[1765261295028,5.63858447,132.37,132.35,3.2252446]
[1765261295325,0.05283029,132.38,132.35,3.2252446]
[1765261295527,5.63513374,132.37,132.35,3.2252446]
[1765261295724,0.05283029,132.38,132.35,3.2252446]
[1765261296020,5.63512915,132.37,132.35,3.2252446]
[1765261296221,0.05283029,132.38,132.35,3.2252446]
[1765261296414,5.63473741,132.37,132.35,3.2252446]
[1765261296615,0.05283029,132.38,132.35,3.2252446]
[1765261296924,5.63505215,132.37,132.35,3.2252446]
[1765261297227,0.05283029,132.38,132.35,3.2252446]
[1765261297428,5.63506786,132.37,132.35,3.2252446]
[1765261297731,0.05283029,132.38,132.35,3.2252446]
[1765261300239,0.05283029,132.38,132.35,10.0260446]
[1765261300439,0.05283029,132.38,132.35,5.27084016]
[1765261300627,0.05283029,132.38,132.36,3.17]
[1765261301331,0.05283029,132.38,132.37,3.17]
[1765261306238,5.67984513,132.38,132.37,3.17]
[1765261306634,5.67984513,132.38,132.35,3.2252446]
[1765261306834,5.62701484,132.37,132.35,3.2252446]
[1765261307143,0.05283029,132.38,132.35,3.2252446]
[1765261307339,5.62596161,132.37,132.35,3.2252446]
[1765261307539,0.05283029,132.38,132.35,3.2252446]
[1765261307743,5.62596161,132.37,132.35,3.2252446]
[1765261307942,0.05283029,132.38,132.35,3.2252446]
[1765261308241,5.62623477,132.37,132.35,3.2252446]
[1765261308443,0.05283029,132.38,132.35,3.2252446]
[1765261308645,5.62636599,132.37,132.35,3.2252446]
[1765261308948,0.05283029,132.38,132.35,3.2252446]
[1765261309136,5.62695929,132.37,132.35,3.2252446]
[1765261309336,0.05283029,132.38,132.35,3.2252446]
[1765261309537,5.62802836,132.37,132.35,3.2252446]
[1765261309738,0.05283029,132.38,132.35,3.2252446]
[1765261309948,5.62802825,132.37,132.35,3.2252446]
[1765261310147,0.05283029,132.38,132.35,3.2252446]
[1765261310448,5.62801808,132.37,132.35,3.2252446]
[1765261310748,0.05283029,132.38,132.35,3.2252446]
[1765261310954,5.62801808,132.37,132.35,3.2252446]
[1765261311150,0.05283029,132.38,132.35,3.2252446]
[1765261311345,5.62802553,132.37,132.35,3.2252446]
[1765261311544,5.62785524,132.36,132.35,3.1752446]
[1765261311852,7.6734508,132.36,132.35,3.1752446]
[1765261314245,2.09842585,132.38,132.35,3.1752446]
[1765261314446,5.62857078,132.37,132.35,3.1752446]
[1765261314645,0.05283029,132.38,132.35,3.1752446]
[1765261314948,5.62856933,132.37,132.35,3.1752446]
[1765261315144,0.05283029,132.38,132.35,3.1752446]
[1765261315348,5.62904636,132.37,132.35,3.1752446]
[1765261315543,0.05283029,132.38,132.35,3.1752446]
[1765261315751,5.62904883,132.37,132.35,3.1752446]
[1765261316048,0.05283029,132.38,132.35,3.1752446]
[1765261316247,5.62958746,132.37,132.35,3.1752446]
[1765261316452,0.05283029,132.38,132.35,3.1752446]
[1765261316650,5.62958746,132.37,132.35,3.1752446]
[1765261316854,0.05283029,132.38,132.35,3.1752446]
[1765261317045,5.62958746,132.37,132.35,3.1752446]
[1765261317245,0.05283029,132.38,132.35,3.1752446]
[1765261317445,5.63019448,132.37,132.35,3.1752446]
[1765261317641,0.05283029,132.38,132.35,3.1752446]
[1765261317852,5.63019448,132.37,132.35,3.1752446]
[1765261318053,0.05283029,132.38,132.35,3.1752446]
[1765261318247,5.63119443,132.37,132.35,3.1752446]
[1765261318551,0.05283029,132.38,132.35,3.1752446]
[1765261318752,5.63119319,132.37,132.35,3.1752446]
[1765261318954,0.05283029,132.38,132.35,3.1752446]
[1765261319143,5.63119443,132.37,132.35,3.1752446]
[1765261319343,0.05283029,132.38,132.35,3.1752446]
[1765261319544,5.63146799,132.37,132.35,3.1752446]
[1765261319753,0.05283029,132.38,132.35,3.1752446]
[1765261320050,5.63719819,132.37,132.35,3.1752446]
[1765261320250,0.05283029,132.38,132.35,3.1752446]
[1765261320553,5.63710878,132.37,132.35,3.1752446]
[1765261320752,0.05283029,132.38,132.35,3.1752446]
[1765261320952,5.63600588,132.37,132.35,3.1752446]
[1765261321143,0.05283029,132.38,132.35,3.1752446]
[1765261321343,5.63623955,132.37,132.35,3.1752446]
[1765261321542,0.05283029,132.38,132.35,3.1752446]
[1765261321844,5.63606086,132.37,132.35,3.1752446]
[1765261322040,0.05283029,132.38,132.35,3.1752446]
[1765261322237,5.63557313,132.37,132.35,3.1752446]
[1765261322438,0.05283029,132.38,132.35,3.1752446]
[1765261322653,5.63565856,132.37,132.35,3.1752446]
[1765261322954,0.05283029,132.38,132.35,3.1752446]
[1765261323147,5.63565856,132.37,132.35,3.1752446]
[1765261323348,0.05283029,132.38,132.35,3.1752446]
[1765261323549,5.63602478,132.37,132.35,3.1752446]
[1765261323749,0.05283029,132.38,132.35,3.1752446]
[1765261324057,5.63602653,132.37,132.35,3.1752446]
[1765261324249,0.05283029,132.38,132.35,3.1752446]
[1765261324449,5.6362709,132.37,132.35,3.1752446]
[1765261324649,0.05283029,132.38,132.35,3.1752446]
[1765261324850,5.63626932,132.37,132.35,3.1752446]
[1765261325052,0.05283029,132.38,132.35,3.1752446]
[1765261325253,5.63644751,132.37,132.35,3.1752446]
[1765261325454,0.05283029,132.38,132.35,3.1752446]
[1765261325658,5.63654165,132.37,132.35,3.1752446]
[1765261325858,0.05283029,132.38,132.35,3.1752446]
[1765261326051,5.63466497,132.37,132.35,3.1752446]
[1765261326247,0.05283029,132.38,132.35,3.1752446]
[1765261326451,5.63479005,132.37,132.35,3.1752446]
[1765261326647,0.05283029,132.38,132.37,3.21]
[1765261326957,80.09939424,132.43,132.37,3.21]
[1765261327150,10.74096985,132.42,132.37,10.0097]
[1765261327354,5.63506609,132.41,132.38,3.21]
[1765261327556,5.63506609,132.4,132.38,3.21]
[1765261327752,0.05415063,132.4,132.38,3.26651269]
[1765261355285,5.53900843,132.39,132.38,3.26651269]
[1765261355683,0.05415063,132.4,132.38,0.05651269]
[1765261355882,5.5390118,132.39,132.38,3.37651269]
[1765261358995,0.05415063,132.4,132.38,3.37651269]
[1765261359184,5.54233365,132.39,132.38,3.37651269]
[1765261359389,0.05415063,132.4,132.38,3.37651269]
[1765261363394,5.55158401,132.39,132.38,3.37651269]
[1765261363798,0.05415063,132.4,132.38,3.37651269]
[1765261364097,5.54872689,132.39,132.38,3.37651269]
[1765261364896,0.05415063,132.4,132.38,3.37651269]
[1765261372009,7.01669868,132.43,132.39,3.28]
[1765261372306,5.5490267,132.42,132.39,3.28]
[1765261372498,5.5490267,132.41,132.39,3.28]
[1765261372695,7.01669868,132.44,132.39,3.28]
[1765261372900,10.61071355,132.43,132.39,3.28]
[1765261373098,5.56977122,132.42,132.41,3.28]
[1765261377406,5.56977122,132.42,132.4,0.05695166]
[1765261377611,5.52851558,132.41,132.4,3.33695166]
[1765261382520,5.52851558,132.41,132.4,0.05695166]
[1765261385821,5.52851558,132.41,132.36,3.07]
[1765261385822,12.32671558,132.41,132.36,3.07]
[1765261386015,5.52851558,132.4,132.36,3.07]
[1765261386220,5.52851558,132.39,132.36,3.07]
[1765261386514,6.7982,132.41,132.36,3.07]
[1765261386720,5.52164298,132.4,132.36,3.07]
[1765261386919,5.57952813,132.39,132.38,3.07]
[1765261389422,5.57952813,132.39,132.37,0.05523264]
[1765261389614,0.05788515,132.39,132.37,0.05523264]
[1765261389814,0.05788515,132.39,132.37,3.12523264]
[1765261390318,0.05788515,132.39,132.37,0.05523264]
[1765261390524,5.59997616,132.38,132.37,0.05523264]
[1765261393722,5.59997616,132.38,132.37,3.12523264]
[1765261395330,5.59997616,132.38,132.37,0.05523264]
[1765261396433,12.39957616,132.38,132.33,3.07]
[1765261396731,5.59997616,132.37,132.33,3.07]
[1765261396928,6.7996,132.38,132.33,3.07]
[1765261397133,5.58665078,132.37,132.33,3.07]
[1765261397328,6.7996,132.38,132.33,3.07]
[1765261397533,5.64340354,132.37,132.34,3.12630542]
[1765261397725,0.05793553,132.37,132.34,3.12630542]
[1765261400835,5.58376856,132.36,132.34,3.12630542]
[1765261401141,0.05793553,132.37,132.34,3.12630542]
[1765261405834,2.10356931,132.37,132.34,3.12630542]
[1765261406038,5.58047272,132.36,132.34,3.12630542]
[1765261406338,2.10356931,132.37,132.34,3.12630542]
[1765261406538,5.57945647,132.36,132.34,3.12630542]
[1765261406739,2.10356931,132.37,132.34,3.12630542]
[1765261406940,5.57945278,132.36,132.34,3.12630542]
[1765261407239,8.90356931,132.37,132.34,3.12630542]
[1765261408241,0.05793553,132.37,132.34,3.12630542]
[1765261409528,2.04563378,132.36,132.34,0.05630542]
[1765261409731,105.8193,132.32,132.26,3.07]
[1765261409935,2.04563378,132.27,132.25,3.07]
[1765261410639,0.05210579,132.27,132.25,3.12104022]
[1765261410840,2.04563378,132.32,132.27,3.07]
[1765261411636,9.03088902,132.38,132.31,3.07]
[1765261411839,0.0543965,132.36,132.33,3.12758138]
[1765261414845,2.10003028,132.36,132.33,3.12758138]
[1765261416246,0.0543965,132.36,132.33,3.12758138]
[1765261418741,0.0543965,132.36,132.33,9.92918138]
[1765261419048,0.0543965,132.36,132.34,3.07]
[1765261419950,0.0543965,132.36,132.35,3.07]
[1765261422952,0.0043965,132.36,132.35,3.07]
[1765261429454,0.0043965,132.36,132.35,5.11563378]
[1765261433060,5.54716893,132.41,132.39,3.07]
[1765261433260,9.01894331,132.44,132.39,3.07]
[1765261433459,5.54724879,132.43,132.39,3.07]
[1765261433660,5.54724879,132.42,132.39,3.07]
[1765261433853,2.04563378,132.44,132.39,3.07]
[1765261434055,5.58969293,132.43,132.4,0.05283081]
[1765261434262,5.53955895,132.42,132.4,0.05283081]
[1765261434559,0.05013398,132.43,132.4,0.05283081]
[1765261434858,5.53916209,132.42,132.4,0.05283081]
[1765261435059,0.05013398,132.43,132.4,0.05283081]
[1765261435254,5.53881028,132.42,132.4,0.05283081]
[1765261435558,0.05013398,132.43,132.4,3.12283081]
[1765261436148,0.05013398,132.43,132.42,3.07]
[1765261437162,0.05013398,132.43,132.41,3.07]
[1765261439150,0.05013398,132.43,132.4,0.05283081]
[1765261440464,2.04563378,132.42,132.4,0.05283081]
[1765261440765,5.53112555,132.41,132.4,0.05283081]
[1765261442453,12.32922555,132.41,132.36,3.07]
[1765261442657,2.04563378,132.38,132.34,3.07]
[1765261442866,2.04563378,132.36,132.32,3.07]
[1765261443667,0.0537901,132.35,132.33,3.11975871]
[1765261446168,2.04563378,132.34,132.33,0.04975871]
[1765261451774,0.0537901,132.35,132.33,3.11975871]
[1765261453057,0.0537901,132.35,132.33,0.04975871]
[1765261453264,2.04563378,132.34,132.33,0.04975871]
[1765261454864,0.0537901,132.35,132.33,0.04975871]
[1765261454865,0.0537901,132.35,132.33,3.11975871]
[1765261455466,0.0537901,132.35,132.33,0.04975871]
[1765261457174,6.8546901,132.35,132.33,0.04975871]
[1765261457582,0.0537901,132.35,132.33,0.04975871]
[1765261458881,0.0537901,132.35,132.33,3.35975871]
[1765261465592,0.0537901,132.35,132.34,3.31]
[1765261470288,0.0537901,132.35,132.33,3.35975871]
[1765261492519,0.0537901,132.35,132.33,10.16155871]
[1765261493020,0.0537901,132.35,132.34,3.19]
[1765261493222,5.71292562,132.35,132.34,3.19]
[1765261494515,7.01096561,132.38,132.35,3.19]
[1765261494719,243.18690897,132.39,132.35,3.19]
[1765261495615,0.05008074,132.38,132.37,3.19]
[1765261495921,0.05333824,132.39,132.37,3.19]
[1765261502315,0.05333824,132.39,132.38,3.19]
[1765261502623,13.80756561,132.44,132.38,3.19]
[1765261502810,7.01096561,132.45,132.39,3.19]
[1765261503014,13.80646561,132.46,132.39,3.19]
[1765261503316,6.7955,132.46,132.39,3.19]
[1765261503515,0.0482045,132.44,132.42,3.19]
[1765261509216,0.0482045,132.44,132.41,3.27187658]
[1765261509521,0.0482045,132.44,132.41,0.05187658]
[1765261509722,5.5893637,132.43,132.41,0.05187658]
[1765261510021,10.04097695,132.44,132.41,0.05187658]
[1765261510322,5.58900822,132.43,132.41,0.05187658]
[1765261510525,10.04097695,132.44,132.41,0.05187658]
[1765261510724,5.58831081,132.43,132.41,0.05187658]
[1765261511015,10.04097695,132.44,132.41,0.05187658]
[1765261511216,12.38354088,132.43,132.41,0.05187658]
[1765261511425,5.58654088,132.42,132.41,0.05187658]
[1765261512415,6.7982,132.41,132.36,3.22]
[1765261512624,108.93477245,132.42,132.36,3.22]
[1765261512810,105.753,132.4,132.34,3.22]
[1765261513017,5.58446364,132.39,132.34,3.22]
[1765261513218,73.00054637,132.38,132.31,3.22]
[1765261513414,5.58427392,132.37,132.31,3.22]
[1765261513614,5.58427392,132.37,132.33,0.05434588]
[1765261513615,6.85566301,132.35,132.33,0.05434588]
[1765261521138,0.05476301,132.35,132.33,0.05434588]
[1765261521333,0.05476301,132.35,132.33,3.26434588]
[1765261522839,3.19627245,132.34,132.33,0.05434588]
[1765261523140,3.19627245,132.34,132.29,3.21]
[1765261523547,9.99767245,132.34,132.29,3.21]
[1765261523747,5.57195357,132.33,132.29,3.21]
[1765261523942,108.99757245,132.34,132.29,3.21]
[1765261524134,0.05069299,132.32,132.3,0.04969373]
[1765261525637,0.05069299,132.32,132.24,170.1181]
[1765261525638,0.05069299,132.32,132.28,3.21]
[1765261525837,3.19627245,132.34,132.28,3.21]
[1765261526539,9.99797245,132.34,132.28,3.21]
[1765261526737,2.09644265,132.32,132.3,0.05812922]
[1765261529540,0.04865023,132.32,132.3,3.26812922]